[Event "*** SCC Grand Prix: Titled Tuesday Blitz"]
[Site "Chess.com"]
[Date "2020.09.08"]
[Round "2"]
[White "IANOV0007"]
[Black "GMJustin"]
[Result "0-1"]
[WhiteElo "2415"]
[BlackElo "2223"]
[TimeControl "180+1"]
[EndTime "10:19:02 PDT"]
[Termination "GMJustin won by resignation"]

1. Nf3 {[%clk 0:03:00.7]} 1... f5 {[%clk 0:02:54.2]} 2. g3 {[%clk 0:02:59.6]}
2... Nf6 {[%clk 0:02:52.5]} 3. Bg2 {[%clk 0:02:59.7]} 3... g6 {[%clk 0:02:52.3]}
4. c4 {[%clk 0:02:57.9]} 4... Bg7 {[%clk 0:02:50.4]} 5. Nc3 {[%clk 0:02:57]}
5... O-O {[%clk 0:02:48.3]} 6. d3 {[%clk 0:02:56.4]} 6... d6 {[%clk 0:02:41.3]}
7. Rb1 {[%clk 0:02:55.7]} 7... c6 {[%clk 0:02:33.2]} 8. b4 {[%clk 0:02:55]} 8...
a5 {[%clk 0:02:19.9]} 9. b5 {[%clk 0:02:54.4]} 9... Nfd7 {[%clk 0:01:50.1]} 10.
Bb2 {[%clk 0:02:47.6]} 10... Nc5 {[%clk 0:01:46.7]} 11. O-O {[%clk 0:02:41]}
11... e5 {[%clk 0:01:45.1]} 12. Na4 {[%clk 0:02:35.6]} 12... Nbd7 {[%clk
0:01:40.7]} 13. bxc6 {[%clk 0:02:32.7]} 13... bxc6 {[%clk 0:01:40.2]} 14. Nd2
{[%clk 0:02:27.2]} 14... Qc7 {[%clk 0:01:34.7]} 15. Ba3 {[%clk 0:02:24]} 15...
Bb7 {[%clk 0:01:14.6]} 16. Nxc5 {[%clk 0:02:20.8]} 16... Nxc5 {[%clk 0:01:13.9]}
17. Bxc5 {[%clk 0:02:20]} 17... dxc5 {[%clk 0:01:13.4]} 18. Qb3 {[%clk
0:02:19.1]} 18... Rfb8 {[%clk 0:01:02.2]} 19. Qb6 {[%clk 0:02:16.2]} 19... Qd6
{[%clk 0:00:49.6]} 20. Nb3 {[%clk 0:02:12.9]} 20... Bf8 {[%clk 0:00:30.8]} 21.
Nd2 {[%clk 0:01:55.7]} 21... e4 {[%clk 0:00:26.9]} 22. Qb3 {[%clk 0:01:48.2]}
22... Bc8 {[%clk 0:00:22.7]} 23. Qc2 {[%clk 0:01:45.6]} 23... exd3 {[%clk
0:00:18.1]} 24. exd3 {[%clk 0:01:44.3]} 24... Bg7 {[%clk 0:00:17.9]} 25. Nf3
{[%clk 0:01:40.6]} 25... Bd7 {[%clk 0:00:14.8]} 26. h4 {[%clk 0:01:36.8]} 26...
h6 {[%clk 0:00:13.9]} 27. Rfe1 {[%clk 0:01:29.5]} 27... Rb4 {[%clk 0:00:12.9]}
28. a3 {[%clk 0:01:28.1]} 28... Rxb1 {[%clk 0:00:12.9]} 29. Rxb1 {[%clk
0:01:27.6]} 29... Rb8 {[%clk 0:00:13.6]} 30. Rxb8+ {[%clk 0:01:25.1]} 30... Qxb8
{[%clk 0:00:13.1]} 31. h5 {[%clk 0:01:17.9]} 31... g5 {[%clk 0:00:12.8]} 32. Nd2
{[%clk 0:01:16.8]} 32... Qb2 {[%clk 0:00:12.5]} 33. Qxb2 {[%clk 0:01:15.5]}
33... Bxb2 {[%clk 0:00:12.4]} 34. a4 {[%clk 0:01:15.5]} 34... Kf7 {[%clk
0:00:11.8]} 35. Nb3 {[%clk 0:01:15.4]} 35... Bc3 {[%clk 0:00:07.2]} 36. Nxc5
{[%clk 0:01:13.4]} 36... Be8 {[%clk 0:00:07.4]} 37. Kf1 {[%clk 0:01:07.4]} 37...
Ke7 {[%clk 0:00:07.2]} 38. Bf3 {[%clk 0:01:02.5]} 38... Kd6 {[%clk 0:00:06.9]}
39. Nb3 {[%clk 0:01:01.6]} 39... c5 {[%clk 0:00:06.4]} 40. g4 {[%clk 0:00:59.3]}
40... Bxa4 {[%clk 0:00:05.3]} 41. Nc1 {[%clk 0:00:55.7]} 41... fxg4 {[%clk
0:00:05.2]} 42. Bxg4 {[%clk 0:00:54.4]} 42... Bc2 {[%clk 0:00:05.3]} 43. Ke2
{[%clk 0:00:47.6]} 43... a4 {[%clk 0:00:05.5]} 44. Na2 {[%clk 0:00:45.9]} 44...
Ba5 {[%clk 0:00:05.2]} 45. Bf5 {[%clk 0:00:40.8]} 45... a3 {[%clk 0:00:03.8]}
46. Ke3 {[%clk 0:00:39]} 46... Bb3 {[%clk 0:00:03.4]} 47. Nc1 {[%clk 0:00:39]}
47... Ba4 {[%clk 0:00:02.9]} 48. d4 {[%clk 0:00:38.1]} 48... Bc3 {[%clk
0:00:02.9]} 49. d5 {[%clk 0:00:35.5]} 49... Bb2 {[%clk 0:00:02.8]} 50. Na2
{[%clk 0:00:33.6]} 50... Bb3 {[%clk 0:00:03]} 51. Bb1 {[%clk 0:00:32.6]} 51...
Bxc4 {[%clk 0:00:03.1]} 52. Kd2 {[%clk 0:00:31.4]} 52... Bxd5 {[%clk 0:00:03]}
53. Nc3 {[%clk 0:00:28]} 53... Bxc3+ {[%clk 0:00:02.4]} 54. Kxc3 {[%clk
0:00:27.8]} 54... a2 {[%clk 0:00:03.1]} 55. Bxa2 {[%clk 0:00:27.4]} 55... Bxa2
{[%clk 0:00:03.3]} 56. Kd3 {[%clk 0:00:27.5]} 56... Bf7 {[%clk 0:00:03.9]} 57.
Ke4 {[%clk 0:00:27.2]} 57... Bxh5 {[%clk 0:00:04.5]} 58. Kf5 {[%clk 0:00:26.2]}
58... Be2 {[%clk 0:00:05.1]} 59. Ke4 {[%clk 0:00:25.9]} 59... g4 {[%clk
0:00:05.5]} 60. Ke3 {[%clk 0:00:25.8]} 60... Bf3 {[%clk 0:00:05.8]} 61. Kf4
{[%clk 0:00:25.8]} 61... h5 {[%clk 0:00:06.2]} 62. Kg3 {[%clk 0:00:25.6]} 62...
c4 {[%clk 0:00:06.5]} 0-1

[Event "*** SCC Grand Prix: Titled Tuesday Blitz"]
[Site "Chess.com"]
[Date "2020.09.08"]
[Round "2"]
[White "Nara_Kh"]
[Black "MikeSailer"]
[Result "1-0"]
[WhiteElo "2400"]
[BlackElo "2123"]
[TimeControl "180+1"]
[EndTime "10:19:02 PDT"]
[Termination "Nara_Kh won on time"]

1. e4 {[%clk 0:03:00.9]} 1... d5 {[%clk 0:02:59.8]} 2. exd5 {[%clk 0:03:00.7]}
2... Qxd5 {[%clk 0:03:00.2]} 3. Nc3 {[%clk 0:03:01]} 3... Qd6 {[%clk 0:03:00.9]}
4. d4 {[%clk 0:02:59.7]} 4... Nf6 {[%clk 0:03:00.9]} 5. Nf3 {[%clk 0:02:59.8]}
5... Bg4 {[%clk 0:03:00.1]} 6. Bc4 {[%clk 0:02:28.1]} 6... e6 {[%clk 0:02:58.7]}
7. O-O {[%clk 0:02:26.9]} 7... c6 {[%clk 0:02:51.2]} 8. Be3 {[%clk 0:02:22.7]}
8... Be7 {[%clk 0:02:50.5]} 9. h3 {[%clk 0:02:22.4]} 9... Bh5 {[%clk 0:02:50.2]}
10. a4 {[%clk 0:02:14.3]} 10... a5 {[%clk 0:02:49.9]} 11. Be2 {[%clk 0:02:08.9]}
11... Nbd7 {[%clk 0:02:46.8]} 12. Nd2 {[%clk 0:02:05.9]} 12... Bxe2 {[%clk
0:02:45.8]} 13. Qxe2 {[%clk 0:02:06.8]} 13... Nb6 {[%clk 0:02:38.5]} 14. Nf3
{[%clk 0:01:31.1]} 14... O-O {[%clk 0:02:32.6]} 15. Ne5 {[%clk 0:01:29.3]} 15...
Nbd5 {[%clk 0:02:27.4]} 16. Rfd1 {[%clk 0:01:15.9]} 16... Nxe3 {[%clk
0:02:16.9]} 17. Qxe3 {[%clk 0:01:11.1]} 17... Nd5 {[%clk 0:02:16.1]} 18. Qg3
{[%clk 0:01:07.5]} 18... Nxc3 {[%clk 0:02:14.2]} 19. Qxc3 {[%clk 0:01:06]} 19...
Qb4 {[%clk 0:02:06.8]} 20. Qxb4 {[%clk 0:00:57.8]} 20... axb4 {[%clk 0:01:59.5]}
21. a5 {[%clk 0:00:46.5]} 21... Rfd8 {[%clk 0:01:51.8]} 22. a6 {[%clk
0:00:43.2]} 22... Rxa6 {[%clk 0:01:36.7]} 23. Rxa6 {[%clk 0:00:42.3]} 23... bxa6
{[%clk 0:01:37.1]} 24. Nxc6 {[%clk 0:00:43]} 24... Rd7 {[%clk 0:01:34.7]} 25. d5
{[%clk 0:00:37.8]} 25... Kf8 {[%clk 0:01:23.1]} 26. Ra1 {[%clk 0:00:17]} 26...
Rxd5 {[%clk 0:01:08.3]} 27. Rxa6 {[%clk 0:00:16.7]} 27... Rd1+ {[%clk
0:01:08.2]} 28. Kh2 {[%clk 0:00:16.3]} 28... Bd6+ {[%clk 0:01:08]} 29. g3 {[%clk
0:00:16.9]} 29... f5 {[%clk 0:00:51.8]} 30. Ra7 {[%clk 0:00:11.2]} 30... Rd2
{[%clk 0:00:41.7]} 31. Kg2 {[%clk 0:00:04.9]} 31... Rxc2 {[%clk 0:00:38.2]} 32.
Nd8 {[%clk 0:00:04.1]} 32... Rxf2+ {[%clk 0:00:22.9]} 33. Kxf2 {[%clk
0:00:02.7]} 33... Bc5+ {[%clk 0:00:23.4]} 34. Kf3 {[%clk 0:00:03.6]} 34... Bxa7
{[%clk 0:00:24.1]} 35. Nxe6+ {[%clk 0:00:04.3]} 35... Kf7 {[%clk 0:00:22.4]} 36.
Ng5+ {[%clk 0:00:04.3]} 36... Kg6 {[%clk 0:00:19.6]} 37. Ne6 {[%clk 0:00:04.7]}
37... Kf6 {[%clk 0:00:16.2]} 38. Nc7 {[%clk 0:00:04.1]} 38... b3 {[%clk
0:00:10.6]} 39. Nd5+ {[%clk 0:00:03.8]} 39... Ke5 {[%clk 0:00:10.7]} 40. Ne7
{[%clk 0:00:02.9]} 40... Bd4 {[%clk 0:00:04.4]} 41. Nc6+ {[%clk 0:00:03.2]}
41... Kd5 {[%clk 0:00:05.2]} 42. Ne7+ {[%clk 0:00:04]} 42... Ke6 {[%clk
0:00:04.8]} 43. Nc6 {[%clk 0:00:04.7]} 43... Bxb2 {[%clk 0:00:03.6]} 44. Ke2
{[%clk 0:00:05.6]} 44... Be5 {[%clk 0:00:03.2]} 45. Kd1 {[%clk 0:00:05.9]} 45...
b2 {[%clk 0:00:03.6]} 46. Kc2 {[%clk 0:00:05.6]} 46... g5 {[%clk 0:00:04.1]} 47.
Nd8+ {[%clk 0:00:05.5]} 47... Kd5 {[%clk 0:00:04.2]} 48. Nf7 {[%clk 0:00:05.8]}
48... f4 {[%clk 0:00:03.5]} 49. Nxg5 {[%clk 0:00:05.9]} 49... fxg3 {[%clk
0:00:04.1]} 50. Nf3 {[%clk 0:00:06.1]} 50... g2 {[%clk 0:00:02.3]} 51. Ng1
{[%clk 0:00:06.4]} 51... Bd4 {[%clk 0:00:02]} 52. h4 {[%clk 0:00:06.8]} 1-0

[Event "*** SCC Grand Prix: Titled Tuesday Blitz"]
[Site "Chess.com"]
[Date "2020.09.08"]
[Round "2"]
[White "kngopal"]
[Black "ljuks68"]
[Result "1-0"]
[WhiteElo "2239"]
[BlackElo "2424"]
[TimeControl "180+1"]
[EndTime "10:19:03 PDT"]
[Termination "kngopal won on time"]

1. e4 {[%clk 0:03:00.9]} 1... e6 {[%clk 0:02:59.7]} 2. d4 {[%clk 0:02:55.9]}
2... d5 {[%clk 0:03:00.1]} 3. e5 {[%clk 0:02:55.9]} 3... c5 {[%clk 0:02:59.7]}
4. c3 {[%clk 0:02:56.3]} 4... Nc6 {[%clk 0:03:00.2]} 5. Nf3 {[%clk 0:02:56.1]}
5... Qb6 {[%clk 0:03:00.6]} 6. Bd3 {[%clk 0:02:55.9]} 6... cxd4 {[%clk
0:03:00.3]} 7. cxd4 {[%clk 0:02:56.2]} 7... Bd7 {[%clk 0:03:00.7]} 8. O-O {[%clk
0:02:55.7]} 8... Nxd4 {[%clk 0:03:00.4]} 9. Nxd4 {[%clk 0:02:56.4]} 9... Qxd4
{[%clk 0:02:59.9]} 10. Nc3 {[%clk 0:02:57.1]} 10... a6 {[%clk 0:02:58.8]} 11.
Be3 {[%clk 0:02:55.5]} 11... Qxe5 {[%clk 0:02:58.3]} 12. Re1 {[%clk 0:02:55.4]}
12... Qd6 {[%clk 0:02:53.5]} 13. Qf3 {[%clk 0:02:51.5]} 13... Nf6 {[%clk
0:02:39]} 14. Bf4 {[%clk 0:02:49]} 14... Qb6 {[%clk 0:02:36.6]} 15. Nxd5 {[%clk
0:02:43.1]} 15... Nxd5 {[%clk 0:02:36.1]} 16. Qxd5 {[%clk 0:02:42.3]} 16... Be7
{[%clk 0:02:19.6]} 17. Qh5 {[%clk 0:02:37.7]} 17... Qd4 {[%clk 0:01:51.6]} 18.
Be4 {[%clk 0:01:59.9]} 18... Bc6 {[%clk 0:01:23.4]} 19. Bxc6+ {[%clk 0:01:55.5]}
19... bxc6 {[%clk 0:01:21.8]} 20. Be5 {[%clk 0:01:34.7]} 20... Qd5 {[%clk
0:01:21.1]} 21. Qg4 {[%clk 0:01:32.1]} 21... Bf6 {[%clk 0:01:06]} 22. Rad1
{[%clk 0:01:15.3]} 22... Qb5 {[%clk 0:00:58.5]} 23. Bxf6 {[%clk 0:01:06.5]}
23... gxf6 {[%clk 0:00:57.9]} 24. Rxe6+ {[%clk 0:01:00.6]} 24... Kf8 {[%clk
0:00:38.7]} 25. Rxf6 {[%clk 0:00:58.6]} 25... Rg8 {[%clk 0:00:34.1]} 26. Qf3
{[%clk 0:00:57.3]} 26... Rg7 {[%clk 0:00:33.2]} 27. Qxc6 {[%clk 0:00:31]} 27...
Qxc6 {[%clk 0:00:32.5]} 28. Rxc6 {[%clk 0:00:29.2]} 28... Rg6 {[%clk 0:00:32.9]}
29. Rxg6 {[%clk 0:00:28.4]} 29... hxg6 {[%clk 0:00:32.7]} 30. Rd2 {[%clk
0:00:28.1]} 30... Rc8 {[%clk 0:00:30.3]} 31. f3 {[%clk 0:00:28]} 31... Kg7
{[%clk 0:00:28.9]} 32. Kf2 {[%clk 0:00:27.9]} 32... a5 {[%clk 0:00:27.4]} 33. b3
{[%clk 0:00:27.2]} 33... Rc5 {[%clk 0:00:26]} 34. g4 {[%clk 0:00:25.7]} 34... g5
{[%clk 0:00:25.3]} 35. Kg3 {[%clk 0:00:25.5]} 35... f6 {[%clk 0:00:24.7]} 36. h4
{[%clk 0:00:25.3]} 36... gxh4+ {[%clk 0:00:24.2]} 37. Kxh4 {[%clk 0:00:24.2]}
37... Kg6 {[%clk 0:00:24.2]} 38. Kg3 {[%clk 0:00:24.3]} 38... Re5 {[%clk
0:00:20.1]} 39. Rd4 {[%clk 0:00:24]} 39... Rc5 {[%clk 0:00:18.6]} 40. b4 {[%clk
0:00:21.6]} 40... axb4 {[%clk 0:00:17.4]} 41. Rxb4 {[%clk 0:00:21.8]} 41... Ra5
{[%clk 0:00:18]} 42. a4 {[%clk 0:00:21.7]} 42... Kf7 {[%clk 0:00:15.2]} 43. f4
{[%clk 0:00:20.3]} 43... Ke6 {[%clk 0:00:14.4]} 44. Kh4 {[%clk 0:00:19.8]} 44...
Kf7 {[%clk 0:00:13.8]} 45. g5 {[%clk 0:00:19.4]} 45... fxg5+ {[%clk 0:00:13.2]}
46. fxg5 {[%clk 0:00:19.7]} 46... Kg6 {[%clk 0:00:13.3]} 47. Rc4 {[%clk
0:00:18.9]} 47... Rd5 {[%clk 0:00:10.1]} 48. Rc6+ {[%clk 0:00:18.2]} 48... Kg7
{[%clk 0:00:09.6]} 49. Kh5 {[%clk 0:00:16.4]} 49... Ra5 {[%clk 0:00:07.8]} 50.
Rc7+ {[%clk 0:00:16.2]} 50... Kg8 {[%clk 0:00:07.8]} 51. Kh6 {[%clk 0:00:15.1]}
51... Rxa4 {[%clk 0:00:05.7]} 52. Rc8+ {[%clk 0:00:13.5]} 52... Kf7 {[%clk
0:00:05]} 53. g6+ {[%clk 0:00:13.7]} 53... Ke7 {[%clk 0:00:03.4]} 54. Kg7 {[%clk
0:00:12.8]} 1-0

[Event "*** SCC Grand Prix: Titled Tuesday Blitz"]
[Site "Chess.com"]
[Date "2020.09.08"]
[Round "2"]
[White "Ermito2020"]
[Black "poppy73"]
[Result "1-0"]
[WhiteElo "2629"]
[BlackElo "2256"]
[TimeControl "180+1"]
[EndTime "10:19:04 PDT"]
[Termination "Ermito2020 won on time"]

1. e4 {[%clk 0:03:00.9]} 1... c5 {[%clk 0:02:59.6]} 2. Nf3 {[%clk 0:02:59.8]}
2... d6 {[%clk 0:02:59.6]} 3. d4 {[%clk 0:03:00.2]} 3... cxd4 {[%clk 0:03:00.5]}
4. Nxd4 {[%clk 0:03:00.5]} 4... Nf6 {[%clk 0:03:00.9]} 5. Nc3 {[%clk 0:03:01.1]}
5... a6 {[%clk 0:03:01.1]} 6. Nb3 {[%clk 0:03:01.3]} 6... Nbd7 {[%clk
0:02:56.5]} 7. g4 {[%clk 0:03:00.3]} 7... g6 {[%clk 0:02:43.4]} 8. g5 {[%clk
0:02:54.2]} 8... Nh5 {[%clk 0:02:37]} 9. Be2 {[%clk 0:02:54.6]} 9... Ng7 {[%clk
0:02:37.3]} 10. Be3 {[%clk 0:02:53.2]} 10... e5 {[%clk 0:02:33.6]} 11. Nd5
{[%clk 0:02:50.4]} 11... Ne6 {[%clk 0:02:33.1]} 12. h4 {[%clk 0:02:43.9]} 12...
h5 {[%clk 0:02:25.9]} 13. gxh6 {[%clk 0:02:19.2]} 13... Bxh6 {[%clk 0:02:20.3]}
14. Qd2 {[%clk 0:02:11.2]} 14... Bxe3 {[%clk 0:02:05.3]} 15. Qxe3 {[%clk
0:02:12.1]} 15... Nf6 {[%clk 0:01:56.3]} 16. O-O-O {[%clk 0:02:06.6]} 16... Nxd5
{[%clk 0:01:54.7]} 17. Rxd5 {[%clk 0:01:42.1]} 17... Nf4 {[%clk 0:01:52.4]} 18.
Rd2 {[%clk 0:01:40.7]} 18... Rxh4 {[%clk 0:01:23]} 19. Rhd1 {[%clk 0:01:37]}
19... Rh3 {[%clk 0:01:16]} 20. f3 {[%clk 0:01:35]} 20... Rh2 {[%clk 0:01:10.3]}
21. Kb1 {[%clk 0:01:28.4]} 21... Qe7 {[%clk 0:01:00.6]} 22. Bb5+ {[%clk
0:01:25.8]} 22... axb5 {[%clk 0:00:57.3]} 23. Rxh2 {[%clk 0:01:26.7]} 23... Bh3
{[%clk 0:00:50.8]} 24. Qb6 {[%clk 0:01:16.8]} 24... Rd8 {[%clk 0:00:25.3]} 25.
Rdh1 {[%clk 0:01:05.4]} 25... Qd7 {[%clk 0:00:21.1]} 26. Nc1 {[%clk 0:00:56.3]}
26... Ke7 {[%clk 0:00:15.4]} 27. Ne2 {[%clk 0:00:42.3]} 27... Nxe2 {[%clk
0:00:14.9]} 28. Rxe2 {[%clk 0:00:42.3]} 28... Be6 {[%clk 0:00:14.8]} 29. Rd2
{[%clk 0:00:40]} 29... Qc6 {[%clk 0:00:14.1]} 30. Qxc6 {[%clk 0:00:34.2]} 30...
bxc6 {[%clk 0:00:15]} 31. b3 {[%clk 0:00:34.7]} 31... d5 {[%clk 0:00:11.5]} 32.
Kb2 {[%clk 0:00:34.5]} 32... d4 {[%clk 0:00:11]} 33. a4 {[%clk 0:00:34]} 33...
bxa4 {[%clk 0:00:10.7]} 34. bxa4 {[%clk 0:00:34.9]} 34... Ra8 {[%clk 0:00:09.3]}
35. Ra1 {[%clk 0:00:33.6]} 35... c5 {[%clk 0:00:09]} 36. a5 {[%clk 0:00:32.7]}
36... Ra6 {[%clk 0:00:06.6]} 37. c3 {[%clk 0:00:23.2]} 37... Kd6 {[%clk
0:00:04.2]} 38. Kc1 {[%clk 0:00:21.3]} 38... Bc4 {[%clk 0:00:03.7]} 39. Rb2
{[%clk 0:00:20.4]} 39... Kc7 {[%clk 0:00:03.3]} 40. cxd4 {[%clk 0:00:18.9]}
40... exd4 {[%clk 0:00:03.1]} 41. Rc2 {[%clk 0:00:18.6]} 41... Bd3 {[%clk
0:00:02.6]} 42. Rxc5+ {[%clk 0:00:18.3]} 42... Kb7 {[%clk 0:00:02.8]} 43. Rd5
{[%clk 0:00:17.4]} 43... Be2 {[%clk 0:00:02]} 44. Rxd4 {[%clk 0:00:16.3]} 44...
Bxf3 {[%clk 0:00:02.4]} 45. Rd7+ {[%clk 0:00:16.4]} 45... Kc6 {[%clk 0:00:02.5]}
46. Rxf7 {[%clk 0:00:16.1]} 46... Bxe4 {[%clk 0:00:02.7]} 47. Rf6+ {[%clk
0:00:15.6]} 47... Kb7 {[%clk 0:00:03]} 48. Rf7+ {[%clk 0:00:15.3]} 48... Kc6
{[%clk 0:00:02.6]} 49. Kd2 {[%clk 0:00:15.1]} 49... Bf5 {[%clk 0:00:02.2]} 50.
Rf6+ {[%clk 0:00:13.8]} 50... Kb7 {[%clk 0:00:01.9]} 51. Rf7+ {[%clk 0:00:13.7]}
51... Ka8 {[%clk 0:00:01.7]} 52. Rh1 {[%clk 0:00:10.1]} 52... Rd6+ {[%clk
0:00:01.3]} 53. Ke3 {[%clk 0:00:08.7]} 53... Rd8 {[%clk 0:00:01.2]} 54. Rhh7
{[%clk 0:00:07.1]} 54... Re8+ {[%clk 0:00:01.3]} 55. Kf4 {[%clk 0:00:06.7]} 1-0

[Event "*** SCC Grand Prix: Titled Tuesday Blitz"]
[Site "Chess.com"]
[Date "2020.09.08"]
[Round "2"]
[White "OscarAng"]
[Black "MathiasWomacka"]
[Result "1-0"]
[WhiteElo "2235"]
[BlackElo "2417"]
[TimeControl "180+1"]
[EndTime "10:19:05 PDT"]
[Termination "OscarAng won on time"]

1. d4 {[%clk 0:02:58.7]} 1... Nf6 {[%clk 0:02:59.2]} 2. Bg5 {[%clk 0:02:56.4]}
2... Ne4 {[%clk 0:02:58.1]} 3. Bf4 {[%clk 0:02:54.8]} 3... c5 {[%clk 0:02:57.8]}
4. f3 {[%clk 0:02:55.1]} 4... Qa5+ {[%clk 0:02:56.6]} 5. c3 {[%clk 0:02:54.5]}
5... Nf6 {[%clk 0:02:56.5]} 6. Nd2 {[%clk 0:02:52.1]} 6... cxd4 {[%clk
0:02:54.2]} 7. Nc4 {[%clk 0:02:47]} 7... Qd8 {[%clk 0:02:46.5]} 8. Qxd4 {[%clk
0:02:43.9]} 8... Nc6 {[%clk 0:02:42.6]} 9. Qe3 {[%clk 0:02:43.5]} 9... e6 {[%clk
0:02:10.6]} 10. Nd6+ {[%clk 0:02:42.6]} 10... Bxd6 {[%clk 0:02:10.5]} 11. Bxd6
{[%clk 0:02:43.5]} 11... Ne7 {[%clk 0:02:08.2]} 12. h4 {[%clk 0:02:28]} 12...
Nf5 {[%clk 0:02:04.8]} 13. Qd2 {[%clk 0:02:21.7]} 13... Nd5 {[%clk 0:01:38.1]}
14. Bc5 {[%clk 0:02:12.4]} 14... Qc7 {[%clk 0:01:37.1]} 15. Bf2 {[%clk
0:02:10.1]} 15... Ng3 {[%clk 0:01:33.6]} 16. Rh3 {[%clk 0:02:10.7]} 16... Nxf1
{[%clk 0:01:31.6]} 17. Kxf1 {[%clk 0:02:11.6]} 17... Nf6 {[%clk 0:01:20.2]} 18.
e4 {[%clk 0:02:07.4]} 18... d5 {[%clk 0:01:19.1]} 19. exd5 {[%clk 0:01:54.3]}
19... exd5 {[%clk 0:00:55.7]} 20. Re1+ {[%clk 0:01:52]} 20... Be6 {[%clk
0:00:54.1]} 21. Rg3 {[%clk 0:01:30.4]} 21... Rg8 {[%clk 0:00:48.9]} 22. Nh3
{[%clk 0:01:27.8]} 22... O-O-O {[%clk 0:00:37.6]} 23. Qf4 {[%clk 0:01:28.1]}
23... Nh5 {[%clk 0:00:27.6]} 24. Qxc7+ {[%clk 0:01:20.4]} 24... Kxc7 {[%clk
0:00:28.5]} 25. Rg5 {[%clk 0:01:20.9]} 25... g6 {[%clk 0:00:26.6]} 26. g4 {[%clk
0:01:14.3]} 26... Nf6 {[%clk 0:00:25.1]} 27. Nf4 {[%clk 0:01:09.1]} 27... Rde8
{[%clk 0:00:17.3]} 28. Rge5 {[%clk 0:01:04.9]} 28... Bd7 {[%clk 0:00:14.9]} 29.
Rxe8 {[%clk 0:00:57.9]} 29... Rxe8 {[%clk 0:00:13.5]} 30. Rxe8 {[%clk
0:00:58.3]} 30... Bxe8 {[%clk 0:00:11.1]} 31. g5 {[%clk 0:00:58.5]} 31... Nh5
{[%clk 0:00:07.9]} 32. Nxd5+ {[%clk 0:00:58.3]} 32... Kd6 {[%clk 0:00:08.4]} 33.
Ne3 {[%clk 0:00:50.2]} 33... a6 {[%clk 0:00:07.8]} 34. Nc4+ {[%clk 0:00:44.5]}
34... Ke6 {[%clk 0:00:07.2]} 35. Ke2 {[%clk 0:00:42.3]} 35... Bb5 {[%clk
0:00:06.2]} 36. Kd3 {[%clk 0:00:41.8]} 36... Kd5 {[%clk 0:00:06.3]} 37. b3
{[%clk 0:00:41.2]} 37... Nf4+ {[%clk 0:00:05.9]} 38. Ke3 {[%clk 0:00:37.9]}
38... Ng2+ {[%clk 0:00:05.6]} 39. Kd3 {[%clk 0:00:38.2]} 39... Bxc4+ {[%clk
0:00:04.9]} 40. bxc4+ {[%clk 0:00:38]} 40... Ke5 {[%clk 0:00:03.6]} 41. Bg3+
{[%clk 0:00:37.5]} 41... Kf5 {[%clk 0:00:03.2]} 42. a4 {[%clk 0:00:30]} 42...
Nf4+ {[%clk 0:00:02.6]} 43. Ke3 {[%clk 0:00:27.9]} 43... Ne6 {[%clk 0:00:02.3]}
44. Bd6 {[%clk 0:00:25.6]} 44... f6 {[%clk 0:00:01.5]} 45. gxf6 {[%clk
0:00:24.3]} 45... Kxf6 {[%clk 0:00:02.4]} 46. Ke4 {[%clk 0:00:22.2]} 46... h5
{[%clk 0:00:02.8]} 47. a5 {[%clk 0:00:20.2]} 47... g5 {[%clk 0:00:03]} 48. hxg5+
{[%clk 0:00:19.4]} 48... Nxg5+ {[%clk 0:00:03.9]} 49. Kf4 {[%clk 0:00:18.8]}
49... Ne6+ {[%clk 0:00:04.8]} 50. Kg3 {[%clk 0:00:18.9]} 50... Kg5 {[%clk
0:00:04.2]} 51. Be7+ {[%clk 0:00:18]} 51... Kf5 {[%clk 0:00:04.1]} 52. Bd6
{[%clk 0:00:18.7]} 52... Kg5 {[%clk 0:00:03.4]} 53. Be7+ {[%clk 0:00:16.9]}
53... Kf5 {[%clk 0:00:03.4]} 54. Bd6 {[%clk 0:00:17.4]} 54... Nd8 {[%clk
0:00:02.3]} 55. Kh4 {[%clk 0:00:15.4]} 55... Nc6 {[%clk 0:00:02.2]} 56. Bc7
{[%clk 0:00:13]} 56... Ne5 {[%clk 0:00:02.1]} 57. f4 {[%clk 0:00:07.8]} 1-0